bitfinex/quotes_ETHUSD_20220111
["timestamp","ask_amount","ask_price","bid_price","bid_amount"]
[1641862512274,0.08146,3069.2,3068.2,0.0837337]
[1641862512475,0.08146,3069.2,3068.2,0.0022737]
[1641862512673,0.00284212,3069.1,3068.3,0.00170527]
[1641862512873,0.08146,3069.0,3068.1,0.00284212]
[1641862513075,0.08373369,3069.0,3068.0,0.00341054]
[1641862513312,0.00170527,3068.9,3068.0,0.00341054]
[1641862513513,1.40867145,3068.4,3068.0,0.00341054]
[1641862515414,2.92290362,3068.4,3068.0,0.00341054]
[1641862515615,1.3,3068.3,3068.0,0.00341054]
[1641862515815,1.38147,3068.3,3068.0,0.00341054]
[1641862516018,5.1741,3068.2,3067.7,0.00511581]
[1641862516214,5.1741,3068.2,3067.4,0.00682108]
[1641862516215,0.08147,3068.1,3067.4,0.00682108]
[1641862516413,1.08147,3068.1,3067.0,0.00909478]
[1641862516615,1.38147,3068.1,3067.0,0.00909478]
[1641862517267,1.38376255,3067.3,3067.0,0.00909478]
[1641862518569,0.0815,3067.9,3067.0,0.00909478]
[1641862518772,8.2405,3068.0,3067.1,0.0815]
[1641862518773,5.1191,3068.0,3067.1,0.0815]
[1641862519070,5.1191,3068.0,3067.2,0.00795793]
[1641862519271,3.9374,3068.0,3067.3,0.08149]
[1641862519671,3.9374,3068.0,3067.4,0.00682108]
[1641862519672,2.76942776,3067.9,3067.4,0.00682108]
[1641862519871,2.76942776,3067.9,3067.5,1.50211307]
[1641862520070,2.76942776,3067.9,3067.6,0.27854798]
[1641862520272,1.51423217,3068.4,3067.7,0.89634]
[1641862520477,1.51423217,3068.4,3067.8,2.48134143]
[1641862520734,1.51423217,3068.4,3067.9,0.08147]
[1641862521128,1.14793684,3068.8,3067.9,0.59051509]
[1641862521337,2.76917191,3068.3,3068.2,0.81473]
[1641862521528,2.76917191,3068.3,3068.2,1.14908415]
[1641862521731,2.76917191,3068.3,3068.2,1.15135785]
[1641862521932,2.76917191,3068.7,3068.2,1.1170037]
[1641862522329,2.76917191,3068.7,3068.3,0.00170527]
[1641862524131,0.00113684,3068.8,3068.3,0.00170527]
[1641862527768,0.00113684,3068.8,3068.2,0.34012796]
[1641862527971,0.00113684,3068.8,3068.2,0.3022737]
[1641862528247,0.00113684,3068.8,3068.3,0.00170527]
[1641862528248,0.08146,3068.7,3068.3,0.00170527]
[1641862528839,1.65352458,3068.6,3068.1,0.00284212]
[1641862529640,0.08146,3068.5,3068.1,0.00284212]
[1641862530040,1.08146,3068.5,3068.1,0.00284212]
[1641862530239,0.08146,3068.5,3068.1,0.00284212]
[1641862530439,2.73498458,3068.5,3068.1,0.00284212]
[1641862530841,5.50415649,3068.5,3068.1,0.00284212]
[1641862531039,1.0,3068.4,3068.1,0.00284212]
[1641862531239,1.0,3068.4,3067.6,0.00568424]
[1641862531442,3.76917191,3068.4,3067.6,0.00568424]
[1641862531839,3.76917191,3068.4,3067.5,0.00625266]
[1641862531840,2.76917191,3068.4,3067.5,0.00625266]
[1641862532072,2.76917191,3068.3,3067.6,0.08147]
[1641862532377,2.76917191,3068.3,3067.7,0.00511581]
[1641862532972,2.76917191,3068.3,3067.6,0.00568424]
[1641862533176,2.76917191,3068.5,3067.7,0.08147]
[1641862533372,3.06917191,3068.5,3067.7,0.08147]
[1641862533572,3.06917191,3068.5,3067.8,0.00454739]
[1641862533573,2.76917191,3068.2,3067.8,0.00454739]
[1641862534273,8.03748701,3068.3,3067.5,0.33220866]
[1641862534472,8.03748701,3068.3,3067.5,0.36686991]
[1641862534677,2.76917191,3068.1,3067.6,0.00568424]
[1641862534872,2.76917191,3068.1,3067.7,0.08149]
[1641862535275,2.76917191,3068.2,3067.8,0.00454739]
[1641862535916,1.19621693,3068.0,3067.7,0.00511581]
[1641862536518,1.49621693,3068.0,3067.7,0.00511581]
[1641862536917,1.49621693,3068.0,3067.1,0.08149]
[1641862536918,2.76917191,3067.9,3067.5,0.00625266]
[1641862537121,5.12871693,3068.0,3067.5,0.00625266]
[1641862537320,5.12871693,3068.0,3067.4,0.3]
[1641862537517,5.12871693,3068.0,3067.5,0.00625266]
[1641862537718,2.76966653,3067.8,3067.5,0.00625266]
[1641862538119,2.76966653,3067.8,3067.1,0.00852635]
[1641862538618,6.49600398,3067.9,3067.1,0.00852635]
[1641862538818,3.90696653,3067.9,3067.1,0.00852635]
[1641862539018,6.45800359,3067.9,3067.1,0.00852635]
[1641862539219,2.76966653,3067.8,3067.1,0.00852635]
[1641862540872,2.76966653,3067.8,3066.9,0.0096632]
[1641862541075,2.76966653,3067.8,3067.0,0.0815]
[1641862541474,2.76966653,3067.8,3067.1,0.00852635]
[1641862542076,2.76966653,3067.8,3066.9,0.0096632]
[1641862542274,2.76966653,3067.8,3067.0,0.0815]
[1641862542476,2.76966653,3067.8,3066.9,0.0096632]
[1641862542477,3.62939746,3067.7,3066.9,0.0096632]
[1641862542675,3.62939746,3067.7,3067.1,0.00852635]
[1641862542877,3.62939746,3067.7,3066.6,0.01136847]
[1641862543076,3.62939746,3067.7,3066.2,0.01364217]
[1641862543321,1.2291063,3066.5,3066.2,0.09514217]
[1641862543624,7.71146597,3067.7,3066.3,0.01307374]
[1641862543820,0.81543,3067.4,3066.3,0.01307374]
[1641862544020,3.15467239,3067.3,3066.3,0.01307374]
[1641862544421,1.50859267,3066.7,3066.3,0.01307374]
[1641862546123,2.76966653,3066.6,3066.3,0.01307374]
[1641862546523,2.76966653,3066.6,3066.2,0.01364217]
[1641862546967,1.50859267,3066.7,3066.2,0.01364217]
[1641862548369,2.94649216,3066.6,3066.2,0.01364217]
[1641862548570,1.0,3066.5,3066.2,0.01364217]
[1641862548770,0.08153,3066.4,3065.6,0.01705271]
[1641862549167,3.81623,3066.4,3065.6,0.01705271]
[1641862549367,4.0347,3066.4,3065.6,0.01705271]
[1641862549771,2.77039447,3066.3,3065.6,0.01705271]
[1641862550371,5.37198197,3066.3,3065.5,0.01762113]
[1641862550571,0.03698383,3066.1,3065.5,0.01762113]
[1641862550835,0.03698383,3066.1,3064.6,5.68675273]
[1641862550836,3.2631304,3065.5,3064.6,5.68675273]
[1641862551033,0.8157826,3065.3,3065.2,0.0193264]
[1641862551234,0.8157826,3065.3,3064.7,0.00454739]
[1641862551733,1.1157826,3065.3,3064.7,0.00454739]
[1641862552633,0.8157826,3065.3,3064.7,0.00454739]
[1641862552832,1.1157826,3065.3,3064.7,0.00454739]
[1641862555578,0.8158039,3065.0,3064.6,0.00511581]
[1641862556379,0.8158039,3065.0,3064.5,0.00568423]
[1641862556581,0.8158039,3065.0,3064.6,0.08157]
[1641862556978,0.8158039,3065.0,3064.7,0.00454739]
[1641862557181,0.8158039,3065.0,3064.3,0.08157]
[1641862557379,0.00113685,3064.9,3064.3,0.08157]
[1641862557578,0.00113685,3064.9,3064.4,0.00170527]
[1641862558238,0.8158281,3064.8,3064.4,0.00170527]
[1641862558528,2.4476362,3064.8,3064.5,0.00113684]
[1641862558826,2.4476362,3064.8,3064.2,0.00284211]
[1641862559028,2.88774368,3064.7,3064.2,0.00284211]
[1641862559232,1.10011795,3064.4,3064.2,0.00284211]
[1641862559427,1.10011795,3064.4,3063.8,1.54190993]
[1641862559630,1.10011795,3064.4,3063.9,0.00454738]
[1641862559631,0.8160369,3064.2,3063.9,0.00454738]
[1641862560028,0.8160369,3064.2,3063.6,0.00625266]
[1641862560233,0.8160369,3064.2,3063.5,0.00682108]
[1641862560635,0.8160369,3064.2,3063.7,1.26653904]
[1641862560833,3.7466,3064.7,3063.8,0.47]
[1641862561031,3.7466,3064.7,3064.2,0.81575]
[1641862561431,3.7466,3064.7,3064.3,0.00227369]
[1641862561969,1.3620728,3064.6,3064.3,0.00227369]
[1641862562366,1.3620728,3064.6,3064.2,0.00284211]
[1641862563666,1.3620728,3064.6,3064.0,0.00397896]
[1641862565469,1.6620728,3064.6,3064.0,0.00397896]
[1641862565725,1.3620728,3064.6,3064.0,0.00397896]
[1641862565916,1.3620728,3064.6,3063.9,0.00454738]
[1641862566117,0.8159559,3064.5,3064.1,0.00341054]
[1641862566316,1.3620728,3064.6,3063.9,0.00454738]
[1641862566516,3.7466,3064.7,3064.2,1.18859227]
[1641862566716,3.7466,3064.7,3063.9,0.00454738]
[1641862568117,1.13953434,3064.6,3064.0,1.00368983]
[1641862568418,1.13953434,3064.6,3064.1,0.00341054]
[1641862568817,0.8159717,3064.5,3064.1,0.00341054]
[1641862569217,0.8159717,3064.5,3063.9,0.00454738]
[1641862570672,1.1159717,3064.5,3063.9,0.00454738]
[1641862570871,1.9320617,3064.5,3063.9,0.00454738]
[1641862571272,1.11609,3064.5,3063.7,0.00568423]
[1641862571472,0.8161232,3064.1,3063.5,0.00682108]
[1641862572673,1.45966504,3063.6,3063.5,0.00682108]
[1641862577176,7.77440362,3064.4,3063.5,0.00682108]
[1641862577177,5.1233,3064.4,3063.5,0.00682108]
[1641862577577,5.4233,3064.4,3063.5,0.00682108]
[1641862578681,0.8160418,3064.2,3063.5,0.00682108]
[1641862579094,1.49285995,3063.9,3063.5,0.82282108]
[1641862579481,1.49285995,3063.9,3063.6,0.00625266]
[1641862581122,5.1233,3064.4,3063.6,0.00625266]
[1641862581323,5.1233,3064.4,3063.7,0.47]
[1641862581324,1.1443,3064.4,3063.7,0.47]
[1641862581522,1.1443,3064.4,3064.0,0.81583]
[1641862581721,3.7466,3064.7,3064.0,1.28583]
[1641862581921,3.7466,3064.7,3064.1,0.00341054]
[1641862582124,3.7466,3064.7,3064.1,1.20136278]
[1641862582527,4.0466,3064.7,3064.2,0.00284211]
[1641862582921,4.0466,3064.7,3064.3,0.81581]
[1641862584122,2.77211417,3064.6,3064.3,0.81581]
[1641862585576,2.77211417,3064.6,3064.2,0.00284211]
[1641862587878,2.77211417,3064.6,3064.2,0.81868211]
[1641862588332,2.77211417,3064.6,3064.3,0.00227369]
[1641862592277,4.02445417,3064.6,3064.3,0.00227369]
[1641862592478,4.32445417,3064.6,3064.3,0.00227369]
[1641862592677,4.32445417,3064.6,3064.1,0.00341054]
[1641862592979,2.77211417,3064.5,3064.1,0.00341054]
[1641862593178,2.63369527,3064.4,3064.1,0.00341054]
[1641862593378,2.63369527,3064.4,3063.9,0.00454738]
[1641862593379,4.01526527,3064.4,3063.9,0.00454738]
[1641862593677,1.6323327,3064.3,3063.4,0.0073895]
[1641862594278,0.81614,3063.9,3063.4,1.32755702]
[1641862594679,0.81614,3063.9,3063.5,0.00682108]
[1641862595278,0.8160528,3064.1,3063.5,0.00682108]
[1641862595725,0.3,3064.4,3063.5,0.00682108]
[1641862595726,2.77211417,3063.8,3063.5,0.00682108]
[1641862596521,2.77211417,3064.0,3063.5,0.82283108]
[1641862596925,2.77211417,3064.0,3063.6,0.00625266]
[1641862597325,2.77211417,3064.4,3063.6,0.00625266]
[1641862597722,2.77211417,3064.4,3063.8,0.81594]
[1641862597923,0.816024,3064.2,3063.5,0.00682108]
[1641862598127,0.816024,3064.2,3063.9,0.00454738]
[1641862598328,0.816024,3064.2,3063.5,0.00682108]
[1641862598526,0.816024,3064.2,3063.3,0.47]
[1641862598527,0.816024,3064.2,3063.4,0.0073895]
[1641862598727,2.77211417,3064.1,3063.4,0.0073895]
[1641862598927,2.77211417,3064.1,3063.5,0.81602]
[1641862599327,2.77211417,3064.1,3063.6,0.00625266]
[1641862599880,2.77211417,3064.1,3063.5,0.47682108]
[1641862600384,1.1159611,3064.5,3063.6,0.00625266]
[1641862600586,1.1159611,3064.5,3063.7,0.81596]
[1641862600985,0.8160382,3064.2,3063.8,0.00511581]
[1641862601384,0.3,3064.1,3063.6,0.00625266]
[1641862601783,3.07259571,3064.1,3063.6,0.00625266]
[1641862602685,0.3,3064.1,3063.6,0.00625266]
[1641862603238,2.77259571,3064.0,3063.6,0.00625266]
[1641862604429,2.58819256,3063.9,3063.6,0.00625266]
[1641862604826,2.58819256,3063.9,3062.8,11.7843]
[1641862604827,2.58819256,3063.9,3063.2,0.00852635]
[1641862605027,1.0,3063.8,3063.0,0.0096632]
[1641862605226,1.0,3063.8,3062.9,0.01023162]
[1641862605227,2.68015664,3063.7,3062.9,0.01023162]
[1641862605431,1.6326674,3063.4,3062.9,0.01023162]
[1641862605828,1.9326674,3063.4,3062.9,0.01023162]
[1641862606328,2.5630274,3063.3,3062.9,0.01023162]
[1641862606829,1.9326674,3063.4,3062.9,0.01023162]
[1641862607366,2.77259571,3063.2,3062.9,0.01023162]
[1641862607569,3.07259571,3063.2,3062.9,0.01023162]
[1641862607968,3.07259571,3063.2,3062.9,0.00693162]
[1641862608166,0.3,3063.2,3062.9,0.00693162]
[1641862608367,2.77259571,3063.3,3062.9,0.00693162]
[1641862608866,2.13456638,3063.5,3062.9,0.00693162]
[1641862609268,2.74752307,3063.4,3062.9,0.00693162]
[1641862609467,0.8163925,3063.3,3062.9,0.00693162]
[1641862609667,3.28652852,3063.2,3062.9,0.00693162]
[1641862610069,3.28652852,3063.2,3062.3,0.01034216]
[1641862610939,2.77330612,3063.1,3062.3,0.01034216]
[1641862611343,2.55910389,3063.0,3062.3,0.01034216]
[1641862611541,0.3,3063.0,3062.3,0.01034216]
[1641862611942,0.8164777,3062.9,3062.3,0.01034216]
[1641862612642,3.58978382,3062.9,3062.3,0.01034216]
[1641862613244,0.8164777,3062.9,3062.3,0.01034216]
[1641862613847,1.23157662,3062.4,3062.3,0.01034216]
[1641862615371,2.92313684,3062.4,3062.3,0.01034216]
[1641862615571,2.86548129,3062.4,3062.3,0.01034216]
[1641862616272,2.86548129,3062.4,3062.1,0.01147901]
[1641862617476,3.16548129,3062.4,3062.1,0.01147901]
[1641862617681,3.499776,3062.4,3062.1,0.01147901]
[1641862617877,0.08162,3062.3,3062.1,0.01147901]
[1641862618077,5.1,3062.2,3061.0,6.2]
[1641862618323,5.43608077,3062.2,3060.7,0.130786]
[1641862618521,5.43608077,3062.2,3061.1,0.00568423]
[1641862618522,1.40631431,3062.0,3061.1,0.00568423]
[1641862618727,0.08164,3061.9,3061.1,0.00568423]
[1641862618922,0.83274,3061.9,3061.1,0.00568423]
[1641862619124,1.13274,3061.9,3061.1,0.00568423]
[1641862619322,1.13274,3061.9,3060.9,6.2]
[1641862619323,0.3,3061.8,3061.0,0.00625266]
[1641862619523,0.08165,3061.7,3061.0,0.00625266]
[1641862619922,1.4687633,3061.2,3061.0,0.00625266]
[1641862620321,2.0687633,3061.2,3060.6,0.00852635]
[1641862620524,2.8184633,3061.2,3060.6,0.00852635]
[1641862620722,0.08167,3061.1,3060.6,0.00852635]
[1641862620921,1.08167,3061.1,3060.6,0.00852635]
[1641862621523,1.18550084,3060.7,3060.6,0.00852635]
[1641862621726,1.1170491,3060.9,3060.6,0.00852635]
[1641862621972,0.3,3061.0,3060.6,0.00852635]
[1641862622373,0.08167,3061.1,3060.6,0.00852635]
[1641862622574,0.08167,3061.3,3060.6,0.00852635]
[1641862622775,1.1599,3061.4,3060.6,0.82530635]
[1641862622973,0.3,3061.4,3060.6,0.82530635]
[1641862623173,4.3113,3061.5,3060.7,0.00795793]
[1641862623174,4.6113,3061.5,3060.7,0.00795793]
[1641862623976,4.6113,3061.5,3060.6,0.00852635]
[1641862624181,4.6113,3061.5,3060.7,1.50154337]
[1641862624381,4.3113,3061.5,3060.7,1.50154337]
[1641862624578,4.3113,3061.5,3060.8,0.0073895]
[1641862624780,4.6113,3061.5,3060.8,0.0073895]
[1641862625477,1.15743894,3061.3,3060.8,0.0073895]
[1641862625730,1.45743894,3061.3,3060.8,0.0073895]
[1641862625921,1.75743894,3061.3,3060.6,0.00852635]
[1641862626121,0.6,3061.3,3060.6,0.00852635]
[1641862626520,1.6,3061.4,3060.5,0.00909477]
[1641862627023,1.6,3061.4,3060.5,1.30112142]
[1641862627222,2.994129,3061.4,3060.5,1.30112142]
[1641862627425,2.994129,3061.4,3060.6,0.00852635]
[1641862627723,2.64550273,3061.3,3060.6,0.00852635]
[1641862627922,2.994129,3061.4,3060.6,0.00852635]
[1641862628322,5.55527436,3061.4,3060.6,0.00852635]
[1641862628524,2.994129,3061.4,3060.6,0.00852635]
[1641862628724,3.075799,3061.4,3060.6,0.00852635]
[1641862628923,3.075799,3061.4,3060.5,0.00909477]
[1641862628924,7.07269436,3061.4,3060.5,0.00909477]
[1641862629123,5.544149,3061.4,3060.5,0.00909477]
[1641862629477,8.10529436,3061.4,3059.9,0.01250531]
[1641862629679,1.55090021,3060.6,3059.9,1.18256986]
[1641862629876,11.53646009,3061.3,3059.9,1.18256986]
[1641862630077,4.75,3061.1,3059.9,1.08200144]
[1641862630277,0.08168,3061.0,3059.9,1.08200144]
[1641862630477,1.38168,3061.0,3059.9,1.08200144]
[1641862631078,1.49614058,3060.8,3059.9,1.08200144]
[1641862631479,0.00397896,3060.7,3059.8,6.2]
[1641862631679,0.08565896,3060.7,3059.8,6.2]
[1641862631981,0.00341054,3060.6,3059.8,6.2]
[1641862632184,0.08168,3060.5,3059.8,6.2]
[1641862632383,0.08452212,3060.5,3059.2,1.4012737]
[1641862632581,0.00227369,3060.4,3059.3,1.42813219]
[1641862632782,0.08169,3060.3,3059.3,1.90211115]
[1641862632983,0.00170527,3060.3,3059.3,1.90211115]
[1641862633230,0.08169,3060.6,3059.3,1.90211115]
[1641862633231,0.00113685,3060.2,3059.3,1.90211115]
[1641862633426,0.00113685,3060.2,3059.4,2.65472212]
[1641862633727,0.00284212,3060.5,3060.0,1.09708698]
[1641862634126,0.00227369,3060.4,3060.0,1.09708698]
[1641862634325,1.96823301,3060.3,3060.0,1.09708698]
[1641862634526,1.96993828,3060.3,3060.0,1.09708698]
[1641862634728,0.00113685,3060.2,3060.0,1.09708698]
[1641862634926,0.00113685,3060.2,3059.5,0.00284212]
[1641862635128,0.00113685,3060.2,3059.7,0.81706]
[1641862635526,0.00113685,3060.2,3059.8,0.00113685]
[1641862636626,0.00113685,3060.2,3059.8,1.5390566]
[1641862637470,0.00113685,3060.2,3059.9,0.81698]
[1641862638671,0.00113685,3060.2,3059.8,0.00113685]
[1641862639274,0.00113685,3060.2,3059.4,0.00341054]
[1641862639472,1.64272861,3060.2,3059.4,0.00341054]
[1641862639672,0.08282685,3060.2,3059.4,0.00341054]
[1641862640073,0.08282685,3060.2,3059.5,0.8170817]
[1641862640273,0.00113685,3060.2,3059.5,0.8170817]
[1641862640473,0.00113685,3060.2,3059.6,0.00227369]
[1641862640922,0.00113685,3060.2,3059.4,0.00341054]
[1641862641122,0.00113685,3060.2,3059.7,0.00170527]
[1641862641324,0.00113685,3060.2,3059.5,0.81709]
[1641862641722,0.00113685,3060.2,3059.6,0.00227369]
[1641862642725,0.00113685,3060.2,3059.7,0.81703]
[1641862643127,0.00113685,3060.2,3059.8,0.00113685]
[1641862643925,0.00113685,3060.2,3059.7,0.00170527]
[1641862644125,0.00113685,3060.2,3059.5,0.48276683]
[1641862644126,0.00113685,3060.2,3059.6,0.00227369]
[1641862645179,1.47355588,3060.0,3059.6,0.00227369]
[1641862645581,2.77727932,3060.2,3059.6,0.00227369]
[1641862645977,0.00113685,3060.2,3059.6,0.00227369]
[1641862646578,1.51986862,3060.0,3059.6,0.00227369]
[1641862647177,0.00113685,3060.2,3059.6,0.00227369]
[1641862648077,2.77726666,3060.2,3059.6,0.00227369]
[1641862648524,1.3,3060.1,3059.6,0.00227369]
[1641862648724,0.08169,3060.1,3059.6,0.00227369]
[1641862648925,0.38169,3060.1,3059.6,0.00227369]
[1641862649122,0.08169,3060.1,3059.6,0.00227369]
[1641862649522,2.77612981,3060.0,3059.6,0.00227369]
[1641862649921,1.25649195,3059.9,3059.6,0.00227369]
[1641862651421,2.77621145,3059.8,3059.6,0.00227369]
[1641862651623,5.38586683,3059.8,3059.6,0.00227369]
[1641862651822,2.6856916,3059.7,3059.6,0.00227369]
[1641862652677,5.46190305,3059.7,3059.6,0.00227369]
[1641862652881,3.35,3059.6,3059.2,0.9312737]
[1641862653076,3.35,3059.6,3059.2,0.6812737]
[1641862653279,3.65,3059.6,3059.3,0.00170527]
[1641862653479,2.71484954,3059.5,3059.3,0.00170527]
[1641862653881,3.77669861,3059.6,3059.3,0.00170527]
[1641862654177,2.77621145,3059.5,3059.3,0.00170527]
[1641862655581,1.33023975,3059.4,3059.3,0.00170527]
[1641862655823,2.77621145,3059.5,3059.3,0.00170527]
[1641862656224,2.77621145,3059.5,3059.2,0.43297897]
[1641862656828,2.77621145,3059.5,3058.1,2.4153225]
[1641862656829,2.5406196,3059.4,3058.1,2.4153225]
[1641862657028,6.03711,3059.4,3058.1,2.4153225]
[1641862657224,6.03711,3059.4,3058.2,0.00625266]
[1641862657225,2.5406196,3059.3,3058.2,0.00625266]
[1641862657425,0.08172,3059.2,3058.2,0.00625266]
[1641862657626,1.8993403,3059.2,3058.2,0.00625266]
[1641862657930,0.3,3059.1,3058.2,0.00625266]
[1641862658227,1.20136499,3058.6,3058.2,0.00625266]
[1641862658425,1.50136499,3058.6,3058.2,0.00625266]
[1641862658825,2.77621145,3058.5,3058.2,0.00625266]
[1641862661090,6.1,3058.4,3057.7,3.2663]
[1641862661285,2.65436779,3058.3,3057.5,6.2]
[1641862661485,3.25436779,3058.3,3057.8,0.0022737]
[1641862661687,1.11849972,3058.2,3057.8,0.0022737]
[1641862661884,1.52421017,3058.1,3057.8,0.0022737]
[1641862662086,0.08175,3058.0,3057.8,0.0022737]
[1641862662785,2.85796145,3058.0,3057.2,0.00568424]
[1641862662988,4.67593145,3058.0,3057.2,0.00568424]
[1641862663229,4.71576391,3058.0,3057.2,0.00568424]
[1641862663424,5.7,3057.9,3057.1,0.08664224]
[1641862663823,1.13135655,3057.2,3057.1,0.08664224]
[1641862664522,1.13135655,3057.2,3056.1,6.2]
[1641862664523,1.43135655,3057.2,3056.1,6.2]
[1641862664723,1.51313655,3057.2,3056.4,0.8812737]
[1641862664924,0.8181948,3056.9,3056.5,0.00397896]
[1641862665124,1.47974687,3056.8,3056.5,0.00397896]
[1641862666972,1.77974687,3056.8,3056.5,0.00397896]
[1641862667869,0.3,3056.8,3056.5,0.00397896]
[1641862668272,0.38178,3057.1,3056.5,0.00397896]
[1641862668473,0.3,3057.1,3056.5,0.00397896]
[1641862668870,1.35369313,3056.8,3056.5,0.00397896]
[1641862669072,1.65369313,3056.8,3056.5,0.00397896]
[1641862669272,0.3,3056.8,3056.5,0.00397896]
[1641862669475,3.07870671,3057.0,3056.5,0.00397896]
[1641862669873,0.3,3057.1,3056.5,0.00397896]
[1641862670575,1.32650714,3056.9,3056.5,0.00397896]
[1641862671028,1.62650714,3056.9,3056.5,0.00397896]
[1641862672528,5.1,3056.8,3056.1,6.2]
[1641862672729,3.77024319,3056.7,3056.1,6.2]
[1641862672928,3.77024319,3056.7,3056.3,0.00113685]
[1641862672929,2.20115685,3056.7,3056.3,0.00113685]
[1641862673133,0.30113685,3056.7,3056.3,0.00113685]
[1641862673329,3.08039836,3056.7,3056.3,0.00113685]
[1641862673530,3.08039836,3056.7,3055.7,6.81]
[1641862673531,0.3,3056.4,3055.7,6.81]
[1641862673729,0.8183124,3056.3,3055.5,6.33819997]
[1641862673929,0.8183124,3056.3,3055.8,0.00284212]
[1641862674130,0.00170527,3056.6,3055.8,0.00284212]
[1641862674330,6.59096678,3056.6,3055.8,0.00284212]
[1641862674575,1.35199096,3056.2,3055.7,0.00341054]
[1641862675280,3.56624096,3056.2,3055.6,0.00397896]
[1641862675474,0.08179,3056.1,3055.6,0.00397896]
[1641862675873,2.85,3056.0,3055.5,6.05397896]
[1641862676072,1.40804671,3055.6,3055.1,6.2]
[1641862676472,1.40804671,3055.6,3055.2,0.0022737]
[1641862677673,0.00170527,3055.9,3055.2,0.0022737]
[1641862677973,0.00113684,3055.8,3055.2,0.0022737]
[1641862678420,0.00170527,3055.9,3055.3,1.40637743]
[1641862678620,0.30170527,3055.9,3055.3,1.40637743]
[1641862678821,1.29890419,3055.8,3055.4,0.00113685]
[1641862679020,1.59890419,3055.8,3055.4,0.00113685]
[1641862679323,0.00227369,3056.0,3055.4,0.00113685]
[1641862679522,0.30227369,3056.0,3055.4,0.00113685]
[1641862679724,0.00170527,3055.9,3055.4,0.00113685]
[1641862680123,5.09986056,3056.4,3055.4,0.00113685]
[1641862680124,0.00113684,3055.8,3055.4,0.00113685]
[1641862680325,0.00113684,3055.8,3055.5,1.7706553]
[1641862680523,1.1594288,3056.5,3055.6,0.47]
[1641862680524,0.00397896,3056.3,3055.6,0.47]
[1641862680926,0.00341054,3056.2,3055.6,0.47]
[1641862681325,0.00284211,3056.1,3055.6,0.47]
[1641862681726,0.00227369,3056.0,3055.6,0.47]
[1641862682175,0.00170527,3055.9,3055.6,0.47]
[1641862682575,0.00113684,3055.8,3055.6,0.47]
[1641862682978,0.00397896,3056.3,3055.6,0.47]
[1641862683380,0.00341054,3056.2,3055.6,0.47]
[1641862683776,0.00284211,3056.1,3055.6,0.47]
[1641862684178,0.00227369,3056.0,3055.6,0.47]
[1641862684577,0.00170527,3055.9,3055.6,0.47]
[1641862685079,0.00113684,3055.8,3055.6,0.47]
[1641862685479,0.00454739,3056.4,3055.6,0.47]
[1641862685756,0.00397896,3056.3,3055.6,0.47]
[1641862686146,0.00341054,3056.2,3055.6,0.47]
[1641862686445,0.00284211,3056.1,3055.6,0.47]
[1641862686848,0.00227369,3056.0,3055.6,0.47]
[1641862687257,0.00170527,3055.9,3055.7,2.46509251]
[1641862687452,0.00170527,3055.9,3055.8,5.57]
[1641862687649,5.82322003,3057.0,3055.8,9.4103436]
[1641862687850,11.1758,3057.1,3055.9,0.81803]
[1641862688050,11.1758,3057.1,3056.0,0.47]
[1641862688051,0.00397896,3056.3,3056.0,0.47]
[1641862688252,0.00397896,3056.3,3056.1,2.55022496]
[1641862688455,0.00341054,3056.2,3056.1,2.55022496]
[1641862688652,0.00341054,3056.2,3056.1,1.0]
[1641862689052,0.00341054,3056.2,3056.1,3.51799]
[1641862689252,0.00341054,3056.2,3056.1,0.07084105]
[1641862689470,0.00341054,3056.2,3056.0,2.59456808]
[1641862689672,0.00341054,3056.2,3056.1,2.49015068]
[1641862689874,2.77946094,3056.8,3056.1,2.96015068]
[1641862690072,2.77946094,3057.0,3056.1,4.07814068]
[1641862690271,0.00625266,3056.7,3056.5,1.12704754]
[1641862690672,0.00568423,3056.6,3056.4,0.47]
[1641862691078,0.00511581,3056.5,3056.4,0.47]
[1641862691474,0.00511581,3056.5,3056.2,0.81796]
[1641862691675,0.00511581,3056.5,3056.3,0.47]
[1641862691875,0.00454739,3056.4,3056.3,0.47]
[1641862692674,0.00454739,3056.4,3056.3,2.95295997]
[1641862692875,0.00454739,3056.4,3056.3,0.47]
[1641862693076,0.00454739,3056.4,3056.3,2.9335273]
[1641862693531,0.00454739,3056.4,3056.3,0.47]
[1641862693732,0.00454739,3056.4,3056.3,2.93186836]
[1641862694029,0.00454739,3056.4,3056.3,4.35777086]
[1641862694231,0.00454739,3056.4,3056.3,5.99350086]
[1641862695629,0.00454739,3056.4,3056.3,6.99350086]
[1641862696035,0.00454739,3056.4,3056.3,12.86650086]
[1641862696833,2.5616081,3057.6,3056.4,5.15]
[1641862696834,1.65352458,3057.6,3056.4,5.15]
[1641862697074,1.65352458,3057.6,3057.0,1.11764]
[1641862697273,0.00511581,3057.3,3057.1,0.47]
[1641862697672,0.00454738,3057.2,3057.1,0.47]
[1641862698873,0.00454738,3057.2,3056.7,0.47]
[1641862699273,0.00397896,3057.1,3056.7,0.47]
[1641862699676,0.00341054,3057.0,3056.7,0.47]
[1641862700077,0.00284211,3056.9,3056.7,0.47]
[1641862700475,0.00227369,3056.8,3056.7,0.47]
[1641862702131,2.78101781,3056.8,3056.7,0.47]
[1641862702629,2.78101781,3056.8,3056.7,2.10553]
[1641862702830,0.00227369,3056.8,3056.7,2.10553]
[1641862703430,2.78101781,3056.8,3056.7,2.10553]
[1641862703632,2.78101781,3056.8,3056.7,3.45908513]
[1641862704030,2.78101781,3056.8,3056.7,4.45908513]
[1641862704475,0.00227369,3056.8,3056.7,4.45908513]
[1641862705076,4.16920214,3058.4,3056.7,4.45908513]
[1641862705077,2.77874412,3057.1,3056.8,5.15]
[1641862705275,2.77874412,3057.1,3056.9,1.36935]
[1641862705477,2.78044939,3057.1,3056.9,2.66935]
[1641862706277,0.00170527,3057.1,3056.9,2.36935]
[1641862707277,0.00170527,3057.1,3056.9,1.36935]
[1641862707677,0.00170527,3057.1,3056.9,0.55178]
[1641862708926,0.00170527,3057.1,3057.0,0.81777]
[1641862709127,0.00170527,3057.1,3057.0,1.58777]
[1641862709630,2.73044939,3057.4,3057.0,1.58777]
[1641862710028,0.00113685,3057.3,3057.0,1.58777]
[1641862710229,0.00113685,3057.3,3057.1,1.63528]
[1641862710428,0.00113685,3057.3,3057.2,0.47]
[1641862711429,0.00113685,3057.3,3057.2,1.69786768]
[1641862714377,0.00113685,3057.3,3057.2,1.99786768]
[1641862714577,0.00113685,3057.3,3057.2,1.69786768]
[1641862715076,0.00113685,3057.3,3057.2,3.54514625]
[1641862715277,0.00113685,3057.3,3057.2,6.80689511]
[1641862715477,3.7028,3058.4,3057.3,5.15]
[1641862715736,3.7028,3058.4,3057.5,2.45264]